fUSD/lending_fUSD_20250107
["ID","MTS","AMOUNT","RATE_DAILY","PERIOD"]
[347977573,1736259032285,-150.0,9.583e-05,2]
[347977575,1736259032295,-204.8118,9.599e-05,2]
[347977576,1736259032305,-150.0,9.623e-05,2]
[347977577,1736259032317,-150.0,9.635e-05,2]
[347977578,1736259032328,-168.14,9.647e-05,2]
[347977579,1736259032340,-1973.11030582,9.699e-05,2]
[347977585,1736259032550,-124.32969418,9.699e-05,2]
[347977586,1736259032560,-500.0,9.699e-05,2]
[347977587,1736259032572,-1762.13,9.699e-05,2]
[347977588,1736259032583,-500.0,9.699e-05,2]
[347977589,1736259032592,-500.0,9.699e-05,2]
[347977590,1736259032601,-500.0,9.699e-05,2]
[347977591,1736259032611,-2072.97,9.699e-05,2]
[347977592,1736259032620,-500.0,9.699e-05,2]
[347977593,1736259032630,-500.0,9.699e-05,2]
[347977594,1736259032640,-376.50601829,9.699e-05,2]
[347977595,1736259032649,-500.0,9.699e-05,2]
[347977596,1736259032659,-500.0,9.699e-05,2]
[347977597,1736259032668,-500.0,9.699e-05,2]
[347977598,1736259032677,-1739.07,9.699e-05,2]
[347977599,1736259032687,-500.0,9.699e-05,2]
[347977600,1736259032696,-500.0,9.699e-05,2]
[347977601,1736259032707,-526.9,9.699e-05,2]
[347977602,1736259032717,-500.0,9.699e-05,2]
[347977603,1736259032726,-500.0,9.699e-05,2]
[347977604,1736259032737,-500.0,9.699e-05,2]
[347977605,1736259032751,-730.99,9.699e-05,2]
[347977606,1736259032760,-5711.78,9.699e-05,2]
[347977607,1736259032770,-500.0,9.699e-05,2]
[347977608,1736259032780,-345.52147714,9.699e-05,2]
[347977609,1736259032792,-211.04852286,9.699e-05,2]
[347977610,1736259032803,-500.0,9.699e-05,2]
[347977611,1736259032815,-1552.68,9.699e-05,2]
[347977612,1736259032825,-500.0,9.699e-05,2]
[347977613,1736259032834,-905.79,9.699e-05,2]
[347977614,1736259032843,-2024.87,9.699e-05,2]
[347977615,1736259032852,-500.0,9.699e-05,2]
[347977616,1736259032862,-500.0,9.699e-05,2]
[347977617,1736259032871,-500.0,9.699e-05,2]
[347977618,1736259032881,-500.0,9.699e-05,2]
[347977619,1736259032890,-500.0,9.699e-05,2]
[347977620,1736259032900,-3304.34,9.699e-05,2]
[347977621,1736259032910,-684.18,9.699e-05,2]
[347977622,1736259032919,-1665.02,9.699e-05,2]
[347977623,1736259032928,-2019.9,9.699e-05,2]
[347977624,1736259032938,-500.0,9.699e-05,2]
[347977625,1736259032947,-829.4,9.699e-05,2]
[347977626,1736259032956,-3244.82,9.699e-05,2]
[347977627,1736259032966,-500.0,9.699e-05,2]
[347977628,1736259032975,-1232.32,9.699e-05,2]
[347977629,1736259032985,-835.84,9.699e-05,2]
[347977630,1736259032994,-557.9,9.699e-05,2]
[347977631,1736259033003,-1275.66,9.699e-05,2]
[347977632,1736259033012,-760.29,9.699e-05,2]
[347977633,1736259033022,-2719.27,9.699e-05,2]
[347977634,1736259033031,-2971.79,9.699e-05,2]
[347977635,1736259033041,-2932.38,9.699e-05,2]
[347977636,1736259033051,-1714.17,9.699e-05,2]
[347977637,1736259033060,-150.0,9.703e-05,2]
[347977638,1736259033073,-150.0,9.744e-05,2]
[347977639,1736259033083,-1552.68,9.766e-05,2]
[347977640,1736259033094,-1552.68,9.767e-05,2]
[347977641,1736259033103,-753.82,9.767e-05,2]
[347977642,1736259033113,-1491.33,9.767e-05,2]
[347977643,1736259033123,-4602.92,9.767e-05,2]
[347977644,1736259033136,-876.25,9.767e-05,2]
[347977645,1736259033146,-12221.56,9.767e-05,2]
[347977646,1736259033158,-2688.37,9.767e-05,2]
[347977647,1736259033169,-500.0,9.767e-05,2]
[347977648,1736259033178,-1414.4,9.767e-05,2]
[347977649,1736259033188,-1552.68,9.768e-05,2]
[347977650,1736259033198,-1552.68,9.769e-05,2]
[347977651,1736259033208,-150.0,9.789e-05,2]
[347977652,1736259033218,-150.0,9.789e-05,2]
[347977653,1736259033228,-150.0,9.789e-05,2]
[347977654,1736259033237,-150.0,9.789e-05,2]
[347977655,1736259033247,-150.0,9.795e-05,2]
[347977656,1736259033257,-150.0,9.812e-05,2]
[347977657,1736259033267,-2625.241,9.838e-05,2]
[347977658,1736259033277,-179.744,9.838e-05,2]
[347977659,1736259033287,-150.0,9.843e-05,2]
[347977660,1736259033297,-150.0,9.87e-05,2]
[347977661,1736259033307,-824.79,9.87e-05,2]
[347977662,1736259033321,-4949.75,9.87e-05,2]
[347977663,1736259033333,-420.0,9.873e-05,2]
[347977664,1736259033346,-150.0,9.898e-05,2]
[347977665,1736259033356,-2800.0,9.9e-05,3]
[347977666,1736259033366,-150.0,9.952e-05,2]
[347977667,1736259033376,-2394.12,9.969e-05,2]
[347977668,1736259033388,-548.11,9.969e-05,2]
[347977669,1736259033398,-5611.94,9.969e-05,2]
[347977670,1736259033408,-1832.22,9.969e-05,2]
[347977671,1736259033418,-8662.0,9.969e-05,2]
[347977672,1736259033428,-1697.78439698,9.969e-05,2]
[347977673,1736259033444,-2615.44560302,9.969e-05,2]
[347977674,1736259033454,-1496.57,9.969e-05,2]
[347977675,1736259033464,-1304.18,9.969e-05,2]
[347977676,1736259033473,-2615.28,9.969e-05,2]
[347977677,1736259033483,-500.0,9.969e-05,2]
[347977678,1736259033492,-792.6,9.969e-05,2]
[347977679,1736259033501,-5296.17696172,9.969e-05,2]
[347977680,1736259033513,-1433.11303828,9.969e-05,2]
[347977681,1736259033525,-1467.83,9.969e-05,2]
[347977682,1736259033534,-3559.03,9.969e-05,2]
[347977683,1736259033543,-1524.71,9.969e-05,2]
[347977684,1736259033553,-500.0,9.969e-05,2]
[347977685,1736259033563,-503.81658871,9.969e-05,2]
[347977686,1736259033579,-500.0,9.969e-05,2]
[347977687,1736259033589,-500.0,9.969e-05,2]
[347977688,1736259033599,-502.75653172,9.969e-05,2]
[347977689,1736259033609,-528.48766982,9.969e-05,2]
[347977690,1736259033618,-532.2596745,9.969e-05,2]
[347977691,1736259033628,-706.98,9.97e-05,2]
[347977692,1736259033647,-500.0,9.97e-05,2]
[347977693,1736259033659,-2605.92,9.97e-05,2]
[347977694,1736259033670,-500.0,9.97e-05,2]
[347977695,1736259033680,-1353.29,9.97e-05,2]
[347977696,1736259033691,-4908.13,9.97e-05,2]
[347977697,1736259033701,-2057.28,9.97e-05,2]
[347977698,1736259033711,-6112.9,9.97e-05,2]
[347977699,1736259033721,-2837.53,9.97e-05,2]
[347977700,1736259033731,-6178.46,9.97e-05,2]
[347977701,1736259033741,-15856.59,9.97e-05,2]
[347977702,1736259033751,-500.0,9.97e-05,2]
[347977703,1736259033760,-1514.47775267,9.97e-05,2]
[347977704,1736259033773,-294.25224733,9.97e-05,2]
[347977705,1736259033783,-130.67023241,9.97e-05,2]
[347977706,1736259033802,-2691.35976759,9.97e-05,2]
[347977707,1736259033812,-312.17129844,9.97e-05,2]
[347977708,1736259033835,-1588.05870156,9.97e-05,2]
[347977709,1736259033845,-239.15066599,9.97e-05,2]
[347977710,1736259033857,-412.40818989,9.97e-05,2]
[347977711,1736259033869,-4467.27114412,9.97e-05,2]
[347977712,1736259033879,-1360.83,9.97e-05,2]
[347977713,1736259033889,-9228.68,9.97e-05,2]
[347977714,1736259033899,-150.0,9.97e-05,2]
[347977715,1736259033909,-4781.4731,9.971e-05,2]
[347977716,1736259033919,-500.0,9.971e-05,2]
[347977717,1736259033929,-1836.77,9.971e-05,2]
[347977718,1736259033939,-1626.23,9.971e-05,2]
[347977719,1736259033948,-1948.37,9.971e-05,2]
[347977720,1736259033958,-1192.96,9.971e-05,2]
[347977721,1736259033968,-782.96,9.971e-05,2]
[347977722,1736259033977,-1060.88,9.971e-05,2]
[347977723,1736259033987,-500.0,9.971e-05,2]
[347977724,1736259033998,-500.0,9.971e-05,2]
[347977725,1736259034008,-500.0,9.971e-05,2]
[347977726,1736259034019,-671.58,9.971e-05,2]
[347977727,1736259034029,-500.0,9.971e-05,2]
[347977728,1736259034040,-1073.13,9.971e-05,2]
[347977729,1736259034049,-548.21,9.971e-05,2]
[347977730,1736259034059,-500.0,9.971e-05,2]
[347977731,1736259034073,-510.25,9.971e-05,2]
[347977732,1736259034083,-500.0,9.971e-05,2]
[347977733,1736259034094,-850.43,9.971e-05,2]
[347977734,1736259034104,-965.59,9.971e-05,2]
[347977735,1736259034115,-759.35,9.971e-05,2]
[347977736,1736259034125,-548.55,9.971e-05,2]
[347977737,1736259034135,-863.31,9.971e-05,2]
[347977738,1736259034147,-500.0,9.971e-05,2]
[347977739,1736259034158,-1341.0,9.971e-05,2]
[347977740,1736259034169,-500.0,9.971e-05,2]
[347977741,1736259034179,-500.0,9.971e-05,2]
[347977742,1736259034189,-1664.94,9.971e-05,2]
[347977743,1736259034200,-500.0,9.971e-05,2]
[347977744,1736259034211,-602.93,9.971e-05,2]
[347977745,1736259034222,-500.0,9.971e-05,2]
[347977746,1736259034232,-500.0,9.971e-05,2]
[347977747,1736259034242,-656.05,9.971e-05,2]
[347977748,1736259034252,-500.0,9.971e-05,2]
[347977749,1736259034263,-500.0,9.971e-05,2]
[347977750,1736259034273,-500.0,9.971e-05,2]
[347977751,1736259034282,-539.39,9.971e-05,2]
[347977752,1736259034293,-500.0,9.971e-05,2]
[347977753,1736259034303,-912.58,9.971e-05,2]
[347977754,1736259034314,-500.0,9.971e-05,2]
[347977755,1736259034330,-500.0,9.971e-05,2]
[347977756,1736259034345,-500.0,9.971e-05,2]
[347977757,1736259034356,-1968.77,9.971e-05,2]
[347977758,1736259034366,-500.0,9.971e-05,2]
[347977759,1736259034378,-591.69,9.971e-05,2]
[347977760,1736259034387,-545.06,9.971e-05,2]
[347977761,1736259034398,-870.76,9.971e-05,2]
[347977762,1736259034408,-500.0,9.971e-05,2]
[347977763,1736259034418,-500.0,9.971e-05,2]
[347977764,1736259034428,-1245.34,9.971e-05,2]
[347977765,1736259034438,-500.0,9.971e-05,2]
[347977766,1736259034448,-500.0,9.971e-05,2]
[347977767,1736259034458,-557.23,9.971e-05,2]
[347977768,1736259034468,-1463.18,9.971e-05,2]
[347977769,1736259034478,-732.97,9.971e-05,2]
[347977770,1736259034488,-500.0,9.971e-05,2]
[347977771,1736259034499,-553.87,9.971e-05,2]
[347977772,1736259034508,-500.0,9.971e-05,2]
[347977773,1736259034518,-891.56,9.971e-05,2]
[347977774,1736259034528,-535.41,9.971e-05,2]
[347977775,1736259034538,-628.77862188,9.971e-05,2]
[347977776,1736259034548,-771.86,9.971e-05,2]
[347977777,1736259034558,-500.0,9.971e-05,2]
[347977778,1736259034568,-500.0,9.971e-05,2]
[347977779,1736259034578,-780.22,9.971e-05,2]
[347977780,1736259034588,-1479.88,9.971e-05,2]
[347977781,1736259034597,-164.504576,9.971e-05,2]
[347977782,1736259034606,-500.0,9.971e-05,2]
[347977783,1736259034616,-500.0,9.971e-05,2]
[347977784,1736259034626,-1234.19,9.971e-05,2]
[347977785,1736259034636,-711.26,9.971e-05,2]
[347977786,1736259034646,-500.0,9.971e-05,2]
[347977787,1736259034656,-500.0,9.971e-05,2]
[347977788,1736259034665,-155.341838,9.971e-05,2]
[347977789,1736259034675,-939.86,9.971e-05,2]
[347977790,1736259034685,-155.826196,9.971e-05,2]
[347977791,1736259034695,-500.0,9.971e-05,2]
[347977792,1736259034704,-783.73,9.971e-05,2]
[347977793,1736259034714,-500.0,9.971e-05,2]
[347977794,1736259034723,-780.52,9.971e-05,2]
[347977795,1736259034733,-500.0,9.971e-05,2]
[347977796,1736259034743,-500.0,9.971e-05,2]
[347977797,1736259034753,-500.0,9.971e-05,2]
[347977798,1736259034763,-500.0,9.971e-05,2]
[347977799,1736259034772,-706.75,9.971e-05,2]
[347977800,1736259034782,-500.0,9.971e-05,2]
[347977801,1736259034795,-500.0,9.971e-05,2]
[347977802,1736259034808,-500.0,9.971e-05,2]
[347977803,1736259034826,-500.0,9.971e-05,2]
[347977804,1736259034835,-534.27,9.971e-05,2]
[347977805,1736259034845,-261.69255783,9.971e-05,2]
[347977806,1736259034854,-500.0,9.971e-05,2]
[347977807,1736259034864,-155.360566,9.971e-05,2]
[347977808,1736259034874,-500.0,9.971e-05,2]
[347977809,1736259034883,-500.0,9.971e-05,2]
[347977810,1736259034893,-500.0,9.971e-05,2]
[347977811,1736259034902,-1418.26,9.971e-05,2]
[347977812,1736259034912,-617.44,9.971e-05,2]
[347977813,1736259034921,-500.0,9.971e-05,2]
[347977814,1736259034930,-500.0,9.971e-05,2]
[347977815,1736259034939,-500.0,9.971e-05,2]
[347977816,1736259034949,-500.0,9.971e-05,2]
[347977817,1736259034958,-500.0,9.971e-05,2]
[347977818,1736259034968,-500.0,9.971e-05,2]
[347977819,1736259034977,-557.13,9.971e-05,2]
[347977820,1736259034987,-500.0,9.971e-05,2]
[347977821,1736259034997,-500.0,9.971e-05,2]
[347977822,1736259035006,-500.0,9.971e-05,2]
[347977823,1736259035016,-711.23,9.971e-05,2]
[347977824,1736259035026,-1462.8,9.971e-05,2]
[347977825,1736259035035,-500.0,9.971e-05,2]
[347977826,1736259035045,-500.0,9.971e-05,2]
[347977827,1736259035054,-500.0,9.971e-05,2]
[347977828,1736259035063,-500.0,9.971e-05,2]
[347977829,1736259035075,-767.76,9.971e-05,2]
[347977830,1736259035084,-188.06320289,9.971e-05,2]
[347977835,1736259037672,-760.07716815,9.767e-05,2]
[347977836,1736259037684,-48.95283185,9.767e-05,2]
[347977837,1736259037694,-916.52610744,9.767e-05,2]
[347977838,1736259037705,-385.36424049,9.767e-05,2]
[347977839,1736259037717,-865.69,9.767e-05,2]
[347977840,1736259037744,-346.82965207,9.767e-05,2]
[347977841,1736259037754,-265.13242115,9.971e-05,2]
[347977842,1736259037765,-46.80437596,9.971e-05,2]
[347977843,1736259037775,-1658.3,9.971e-05,2]
[347977844,1736259037784,-500.0,9.971e-05,2]
[347977845,1736259037793,-500.0,9.971e-05,2]
[347977846,1736259037803,-500.0,9.971e-05,2]
[347977847,1736259037812,-500.0,9.971e-05,2]
[347977848,1736259037824,-500.0,9.971e-05,2]
[347977849,1736259037834,-1636.61,9.971e-05,2]
[347977850,1736259037843,-500.0,9.971e-05,2]
[347977851,1736259037854,-500.0,9.971e-05,2]
[347977852,1736259037864,-668.09,9.971e-05,2]
[347977853,1736259037873,-553.24,9.971e-05,2]
[347977854,1736259037883,-500.0,9.971e-05,2]
[347977855,1736259037892,-500.0,9.971e-05,2]
[347977856,1736259037902,-515.48,9.971e-05,2]
[347977857,1736259037910,-500.0,9.971e-05,2]
[347977858,1736259037918,-500.0,9.971e-05,2]
[347977859,1736259037924,-313.87471233,9.971e-05,2]
[347977860,1736259037940,-120.7180167,9.971e-05,2]
[347977861,1736259037949,-1946.66,9.971e-05,2]
[347977862,1736259037956,-500.0,9.971e-05,2]
[347977863,1736259037963,-1006.74,9.971e-05,2]
[347977864,1736259037970,-500.0,9.971e-05,2]
[347977865,1736259037978,-500.0,9.971e-05,2]
[347977866,1736259037986,-500.0,9.971e-05,2]
[347977867,1736259037994,-500.0,9.971e-05,2]
[347977868,1736259038000,-848.01,9.971e-05,2]
[347977869,1736259038007,-500.0,9.971e-05,2]
[347977870,1736259038015,-500.0,9.971e-05,2]
[347977871,1736259038024,-500.0,9.971e-05,2]
[347977872,1736259038032,-90.90786758,9.971e-05,2]
[347977874,1736259038042,-611.58213242,9.971e-05,2]
[347977876,1736259038050,-500.0,9.971e-05,2]
[347977877,1736259038059,-500.0,9.971e-05,2]
[347977878,1736259038070,-500.0,9.971e-05,2]
[347977879,1736259038080,-500.0,9.971e-05,2]
[347977880,1736259038090,-500.0,9.971e-05,2]
[347977881,1736259038100,-500.0,9.971e-05,2]
[347977882,1736259038110,-1074.24,9.971e-05,2]
[347977883,1736259038119,-523.13325967,9.971e-05,2]
[347977884,1736259038131,-7.36592884,9.971e-05,2]
[347977885,1736259038143,-512.66407116,9.971e-05,2]
[347977886,1736259038153,-500.0,9.971e-05,2]
[347977887,1736259038163,-500.0,9.971e-05,2]
[347977888,1736259038173,-3449.07,9.971e-05,2]
[347977889,1736259038183,-500.0,9.971e-05,2]
[347977890,1736259038192,-500.0,9.971e-05,2]
[347977891,1736259038202,-500.0,9.971e-05,2]
[347977892,1736259038211,-500.0,9.971e-05,2]
[347977893,1736259038221,-677.32,9.971e-05,2]
[347977894,1736259038230,-500.0,9.971e-05,2]
[347977895,1736259038239,-500.0,9.971e-05,2]
[347977896,1736259038249,-500.0,9.971e-05,2]
[347977897,1736259038259,-500.0,9.971e-05,2]
[347977898,1736259038268,-500.0,9.971e-05,2]
[347977899,1736259038277,-500.0,9.971e-05,2]
[347977900,1736259038287,-500.0,9.971e-05,2]
[347977901,1736259038297,-622.67,9.971e-05,2]
[347977902,1736259038306,-500.0,9.971e-05,2]
[347977903,1736259038316,-500.0,9.971e-05,2]
[347977904,1736259038327,-500.0,9.971e-05,2]
[347977905,1736259038342,-500.0,9.971e-05,2]
[347977906,1736259038351,-676.83,9.971e-05,2]
[347977907,1736259038361,-500.0,9.971e-05,2]
[347977908,1736259038370,-500.0,9.971e-05,2]
[347977909,1736259038379,-638.95,9.971e-05,2]
[347977910,1736259038388,-500.0,9.971e-05,2]
[347977911,1736259038398,-1155.66,9.971e-05,2]
[347977912,1736259038407,-500.0,9.971e-05,2]
[347977913,1736259038416,-500.0,9.971e-05,2]
[347977914,1736259038426,-500.0,9.971e-05,2]
[347977915,1736259038436,-824.6,9.971e-05,2]
[347977916,1736259038445,-500.0,9.971e-05,2]
[347977917,1736259038455,-500.0,9.971e-05,2]
[347977918,1736259038464,-740.9,9.971e-05,2]
[347977919,1736259038474,-5766.65,9.971e-05,2]
[347977920,1736259038484,-500.0,9.971e-05,2]
[347977921,1736259038493,-500.0,9.971e-05,2]
[347977922,1736259038503,-500.0,9.971e-05,2]
[347977923,1736259038512,-500.0,9.971e-05,2]
[347977924,1736259038522,-1942.02,9.971e-05,2]
[347977925,1736259038531,-500.0,9.971e-05,2]
[347977926,1736259038540,-500.0,9.971e-05,2]
[347977927,1736259038549,-500.0,9.971e-05,2]
[347977928,1736259038558,-500.0,9.971e-05,2]
[347977929,1736259038570,-1204.75,9.971e-05,2]
[347977930,1736259038579,-500.0,9.971e-05,2]
[347977931,1736259038589,-552.86,9.971e-05,2]
[347977932,1736259038598,-500.0,9.971e-05,2]
[347977933,1736259038607,-500.0,9.971e-05,2]
[347977934,1736259038616,-500.0,9.971e-05,2]
[347977935,1736259038626,-500.0,9.971e-05,2]
[347977936,1736259038635,-500.0,9.971e-05,2]
[347977937,1736259038644,-500.0,9.971e-05,2]
[347977938,1736259038653,-956.66,9.971e-05,2]
[347977939,1736259038662,-500.0,9.971e-05,2]
[347977940,1736259038672,-500.0,9.971e-05,2]
[347977941,1736259038681,-500.0,9.971e-05,2]
[347977942,1736259038690,-3282.74,9.971e-05,2]
[347977943,1736259038699,-500.0,9.971e-05,2]
[347977944,1736259038709,-500.0,9.971e-05,2]
[347977945,1736259038718,-442.68104262,9.971e-05,2]
[347977946,1736259038727,-500.0,9.971e-05,2]
[347977947,1736259038736,-866.19,9.971e-05,2]
[347977948,1736259038746,-395.2223412,9.971e-05,2]
[347977949,1736259038755,-1967.94,9.971e-05,2]
[347977950,1736259038764,-500.0,9.971e-05,2]
[347977951,1736259038774,-871.33,9.971e-05,2]
[347977952,1736259038783,-500.2156222,9.971e-05,2]
[347977953,1736259038792,-500.0,9.971e-05,2]
[347977954,1736259038801,-500.0,9.971e-05,2]
[347977955,1736259038811,-500.0,9.971e-05,2]
[347977956,1736259038821,-575.81,9.971e-05,2]
[347977957,1736259038831,-500.0,9.971e-05,2]
[347977958,1736259038840,-690.01,9.971e-05,2]
[347977959,1736259038849,-500.0,9.971e-05,2]
[347977960,1736259038859,-744.22,9.971e-05,2]
[347977961,1736259038868,-500.0,9.971e-05,2]
[347977962,1736259038877,-500.0,9.971e-05,2]
[347977963,1736259038887,-500.0,9.971e-05,2]
[347977964,1736259038895,-2024.5,9.971e-05,2]
[347977965,1736259038905,-2125.15,9.971e-05,2]
[347977966,1736259038914,-1627.86,9.971e-05,2]
[347977967,1736259038923,-500.0,9.971e-05,2]
[347977968,1736259038933,-500.0,9.971e-05,2]
[347977969,1736259038942,-500.0,9.971e-05,2]
[347977970,1736259038951,-500.0,9.971e-05,2]
[347977971,1736259038961,-500.0,9.971e-05,2]
[347977972,1736259038970,-807.23,9.971e-05,2]
[347977973,1736259038979,-607.15,9.971e-05,2]
[347977974,1736259038989,-1117.24,9.971e-05,2]
[347977975,1736259038998,-204.91651222,9.971e-05,2]
[347977976,1736259039011,-451.55348778,9.971e-05,2]
[347977977,1736259039021,-547.71,9.971e-05,2]
[347977978,1736259039031,-500.0,9.971e-05,2]
[347977979,1736259039040,-500.0,9.971e-05,2]
[347977980,1736259039049,-504.67775102,9.971e-05,2]
[347977981,1736259039061,-112.47224898,9.971e-05,2]
[347977982,1736259039074,-500.0,9.971e-05,2]
[347977983,1736259039083,-1864.74392722,9.971e-05,2]
[347977984,1736259039095,-513.43607278,9.971e-05,2]
[347977985,1736259039105,-342.12642636,9.971e-05,2]
[347977986,1736259039117,-387.93357364,9.971e-05,2]
[347977987,1736259039127,-500.0,9.971e-05,2]
[347977988,1736259039138,-500.0,9.971e-05,2]
[347977989,1736259039149,-500.0,9.971e-05,2]
[347977990,1736259039159,-500.0,9.971e-05,2]
[347977991,1736259039169,-537.53,9.971e-05,2]
[347977992,1736259039179,-500.0,9.971e-05,2]
[347977993,1736259039189,-6218.61,9.971e-05,2]
[347977994,1736259039200,-6218.61,9.971e-05,2]
[347977995,1736259039209,-500.0,9.971e-05,2]
[347977996,1736259039219,-500.0,9.971e-05,2]
[347977997,1736259039229,-500.0,9.971e-05,2]
[347977998,1736259039239,-500.0,9.971e-05,2]
[347977999,1736259039249,-616.64,9.971e-05,2]
[347978000,1736259039258,-540.79,9.971e-05,2]
[347978001,1736259039268,-500.0,9.971e-05,2]
[347978002,1736259039278,-500.0,9.971e-05,2]
[347978003,1736259039287,-1754.52,9.971e-05,2]
[347978004,1736259039297,-500.0,9.971e-05,2]
[347978005,1736259039307,-500.0,9.971e-05,2]
[347978006,1736259039320,-500.0,9.971e-05,2]
[347978007,1736259039330,-500.0,9.971e-05,2]
[347978008,1736259039347,-500.0,9.971e-05,2]
[347978009,1736259039356,-500.0,9.971e-05,2]
[347978010,1736259039365,-547.53,9.971e-05,2]
[347978011,1736259039376,-500.0,9.971e-05,2]
[347978012,1736259039385,-2511.14,9.971e-05,2]
[347978013,1736259039395,-484.2708326,9.971e-05,2]
[347978014,1736259039407,-15.7291674,9.971e-05,2]
[347978015,1736259039418,-531.14,9.971e-05,2]
[347978016,1736259039428,-500.0,9.971e-05,2]
[347978017,1736259039438,-3654.25,9.971e-05,2]
[347978018,1736259039448,-500.0,9.971e-05,2]
[347978019,1736259039457,-500.0,9.971e-05,2]
[347978020,1736259039466,-605.45,9.971e-05,2]
[347978021,1736259039475,-508.75,9.971e-05,2]
[347978022,1736259039484,-500.0,9.971e-05,2]
[347978023,1736259039493,-1580.72,9.971e-05,2]
[347978024,1736259039502,-500.0,9.971e-05,2]
[347978025,1736259039512,-1260.92,9.971e-05,2]
[347978026,1736259039522,-154.04387817,9.971e-05,2]
[347978027,1736259039534,-345.95612183,9.971e-05,2]
[347978028,1736259039544,-649.64423754,9.971e-05,2]
[347978029,1736259039554,-500.0,9.971e-05,2]
[347978030,1736259039563,-500.0,9.971e-05,2]
[347978031,1736259039578,-500.0,9.971e-05,2]
[347978032,1736259039587,-500.0,9.971e-05,2]
[347978034,1736259039597,-347.02623522,9.971e-05,2]
[347978035,1736259039609,-152.97376478,9.971e-05,2]
[347978036,1736259039618,-327.02958287,9.971e-05,2]
[347978037,1736259039630,-172.97041713,9.971e-05,2]
[347978038,1736259039639,-767.34,9.971e-05,2]
[347978040,1736259039649,-500.0,9.971e-05,2]
[347978041,1736259039659,-500.0,9.971e-05,2]
[347978042,1736259039668,-500.0,9.971e-05,2]
[347978043,1736259039678,-500.0,9.971e-05,2]
[347978044,1736259039688,-500.0,9.971e-05,2]
[347978045,1736259039698,-500.0,9.971e-05,2]
[347978046,1736259039707,-2351.12,9.971e-05,2]
[347978047,1736259039716,-1202.97,9.971e-05,2]
[347978048,1736259039725,-550.51,9.971e-05,2]
[347978049,1736259039735,-778.71,9.971e-05,2]
[347978050,1736259039744,-500.0,9.971e-05,2]
[347978051,1736259039753,-500.0,9.971e-05,2]
[347978052,1736259039763,-1957.69,9.971e-05,2]
[347978053,1736259039772,-948.54,9.971e-05,2]
[347978054,1736259039781,-500.0,9.971e-05,2]
[347978055,1736259039791,-725.49,9.971e-05,2]
[347978056,1736259039800,-500.0,9.971e-05,2]
[347978057,1736259039810,-500.0,9.971e-05,2]
[347978058,1736259039821,-555.3,9.971e-05,2]
[347978059,1736259039830,-591.57759132,9.971e-05,2]
[347978060,1736259039840,-500.0,9.971e-05,2]
[347978061,1736259039850,-500.0,9.971e-05,2]
[347978062,1736259039859,-500.0,9.971e-05,2]
[347978063,1736259039869,-500.0,9.971e-05,2]
[347978064,1736259039880,-500.0,9.971e-05,2]
[347978065,1736259039890,-500.0,9.971e-05,2]
[347978066,1736259039899,-500.0,9.971e-05,2]
[347978067,1736259039909,-316.66452892,9.971e-05,2]
[347978068,1736259039919,-1148.41,9.971e-05,2]
[347978069,1736259039928,-500.0,9.971e-05,2]
[347978070,1736259039937,-500.0,9.971e-05,2]
[347978071,1736259039947,-500.0,9.971e-05,2]
[347978072,1736259039957,-500.0,9.971e-05,2]
[347978073,1736259039966,-500.0,9.971e-05,2]
[347978074,1736259039975,-911.58,9.971e-05,2]
[347978075,1736259039985,-500.0,9.971e-05,2]
[347978076,1736259039994,-506.58515974,9.971e-05,2]
[347978077,1736259040004,-500.0,9.971e-05,2]
[347978078,1736259040013,-571.09,9.971e-05,2]
[347978079,1736259040022,-1347.74,9.971e-05,2]
[347978080,1736259040032,-1336.13,9.971e-05,2]
[347978081,1736259040042,-500.0,9.971e-05,2]
[347978082,1736259040051,-1643.47,9.971e-05,2]
[347978083,1736259040061,-500.0,9.971e-05,2]
[347978084,1736259040073,-842.98610371,9.971e-05,2]
[347978085,1736259040086,-738.71389629,9.971e-05,2]
[347978086,1736259040095,-500.0,9.971e-05,2]